Cogmind - Beta 17 @@@ ROGUE MODE // 2026.08.20 @ 14:37:10 Player: Zane Result: Destroyed by G-50 Soldier with Heavy Laser Performance ------------- Evolutions (5) 2500 Regions Visited (8) 1600 Robots Destroyed (38) 190 Value Destroyed (1520) 1520 Prototype IDs (9) 180 Alien Tech Used (0) 0 Bonus (4504) 4504 TOTAL SCORE: 10494 Bonus ------- High Alert Combat Kills 55 Follower Combat Kills 1957 Registered with UFD 300 Met Optimus in HQ 500 Met Zhirov 300 Built Enhanced Grunts 300 A7 Reached Mainframe 300 Met R17 at Cetus 500 Read Decrypted Archives 300 Friendly Fire -8 Cogmind --------- Core Integrity 0/1000 Matter 300/300 Energy 99/100 System Corruption 42% Temperature Cool (9) Movement Core (50) Location -5/Hub_04(d) Parts ------- > --- POWER (2) -------- (None) > --- PROPULSION (4) --- (None) > --- UTILITY (9) ------ (None) > --- WEAPON (2) ------- (None) > --- INVENTORY (5) ---- Carbon-fiber Leg Advanced Energy Well (152) Advanced ECM Suite Phase Shifter Lance Peak State ------------ > --- POWER ------------ Angular Momentum Engine Light Fission Core > --- PROPULSION ------- Flexi-carbon Leg Myomer Leg Myomer Leg > --- UTILITY ---------- Small Storage Unit Advanced Melee Analysis Suite Armor Integrity Analyzer Advanced ECM Suite Improved Medium Armor Plating Centrium Medium Armor Plating Centrium Medium Armor Plating Centrium Medium Armor Plating Hacking Suite > --- WEAPON ----------- Powered Hammer Phasing Sabre > --- INVENTORY -------- Centrium Heavy Treads Improved Component Analysis Suite Rocket Launcher Phasing Sabre [Rating: 90] Favorites ----------- Power Neutrino Core Engine Ion Engine Power Core Neutrino Core Propulsion Flexi-carbon Leg Treads Centrium Heavy Treads Leg Flexi-carbon Leg Wheel Wheel Hover Unit Antigrav System Utility Small Storage Unit Device Force Booster Storage Small Storage Unit Processor Advanced Melee Analysis Suite Hackware Hacking Suite Protection Centrium Medium Armor Plating Weapon Powered Hammer Ballistic Gun Assault Rifle Launcher Grenade Launcher Special Weapon Mining Laser Impact Weapon Powered Hammer Slashing Weapon Phasing Sabre Piercing Weapon Lance Build | -11 -10 -10 -7 -5 -5 -5 -5 -5 ------- Run | Yrd Mat Sub Scr Fac Ext Cet Arc Hub Slots Evolved 10 | . . . . 10 . . . . Power 1 | . . . . 1 . . . . Propulsion 2 | . . . . 2 . . . . Utility 7 | . . . . 7 . . . . Weapon . | . . . . . . . . . Parts Attached 75 | 7 1 3 5 18 20 6 . 15 Power 12 | 1 . . 1 3 4 1 . 2 Engine 6 | 1 . . . . 2 1 . 2 Core 6 | . . . 1 3 2 . . . Reactor . | . . . . . . . . . Propulsion 23 | 2 . 1 3 4 7 1 . 5 Treads 1 | . . . . . . . . 1 Leg 14 | 2 . . 2 . 7 1 . 2 Wheel 2 | . . 1 . . . . . 1 Hover 6 | . . . 1 4 . . . 1 Flight . | . . . . . . . . . Utility 27 | 2 . . . 9 9 3 . 4 Device 16 | 1 . . . 8 6 . . 1 Storage 2 | 1 . . . . . . . 1 Processor 3 | . . . . 1 1 . . 1 Hackware 1 | . . . . . . . . 1 Protection 5 | . . . . . 2 3 . . Artifact . | . . . . . . . . . Weapon 13 | 2 1 2 1 2 . 1 . 4 Energy Gun . | . . . . . . . . . Energy Cannon . | . . . . . . . . . Ballistic Gun 3 | 2 1 . . . . . . . Ballistic Cannon . | . . . . . . . . . Launcher 2 | . . 1 1 . . . . . Special Weapon 1 | . . 1 . . . . . . Impact Weapon 3 | . . . . 2 . . . 1 Slashing Weapon 2 | . . . . . . 1 . 1 Piercing Weapon 2 | . . . . . . . . 2 Special Melee Weapon . | . . . . . . . . . Unidentified Prototypes 3 | . . . . . . 1 . 2 Corrupted Parts 1 | . . . . . . . . 1 System Corruption 3 | . . . . . . . . 3 Parts Lost 45 | . . 3 . 4 7 8 . 23 Power 5 | . . . . . 1 1 . 3 Propulsion 13 | . . 2 . 1 1 2 . 7 Utility 19 | . . . . 3 5 4 . 7 Weapon 8 | . . 1 . . . 1 . 6 Highest Loss Streak 15 | . . 3 . 2 6 5 . 15 To Critical Strikes 3 | . . . . . 1 1 . 1 Average Backups 6 | 2 7 7 7 6 7 5 4 4 Power . | . . . . 1 1 1 . . Propulsion 1 | . 1 1 . . 2 1 1 1 Utility 2 | . 1 3 4 3 1 1 1 1 Weapon 2 | . 2 2 1 2 2 2 2 1 Tool/Special . | . . . . . . . . . Unused Backups 17 | . 1 2 6 1 4 . . 3 Power 2 | . 1 . . 1 . . . . Propulsion 3 | . . 1 . . 1 . . 1 Utility 7 | . . . 3 . 2 . . 2 Weapon 4 | . . 1 2 . 1 . . . Tool/Special 1 | . . . 1 . . . . . Average Slot Usage (%) 91 | . 100 99 100 79 93 87 88 77 Engine 2 | . 14 14 2 . . 1 5 4 Core 8 | . . . 11 10 10 9 5 2 Leg 20 | . 28 27 27 9 19 20 17 14 Hover 1 | . . . . 5 3 . . . Device 20 | . 14 14 14 29 32 14 5 4 Storage 8 | . 14 14 14 5 5 5 5 3 Processor 4 | . . . . 4 7 11 11 11 Protection 2 | . . . . . . 9 23 14 Ballistic Gun 6 | . 28 13 14 2 . . . . Launcher 4 | . . 12 14 . . . . . Impact Weapon 5 | . . . . 7 11 9 5 6 Peak Build Rating 90 | 7 7 8 17 76 81 87 87 90 Average Rating 45 | 5 7 7 13 56 71 75 87 71 On Entrance 40 | . 7 7 6 17 76 81 87 87 Avg Prop Armor Cover (%) 5 | . . . 5 4 4 . . 31 Naked Turns 37 | . . . . . . . . 37 Heaviest Build 63 | 14 15 16 19 62 61 63 63 63 Greatest Support 90 | 20 20 20 37 37 90 90 70 80 Greatest Overweight (x) 4 | 4 . 1 1 4 1 . . 1 Average Overweight (x) . | . . . . . . . . . Largest Inventory Capacity 8 | 8 8 8 8 8 8 8 8 8 Average Capacity 7 | 7 8 8 8 8 8 8 8 7 Most Carried 8 | 4 8 8 8 8 8 8 5 8 Average Carried 6 | 2 7 7 7 6 7 6 5 4 Final Capacity 8 | 8 8 8 8 8 8 8 8 5 Final Carried 8 | 4 8 6 8 5 8 5 5 5 Scrap Suit Usage (%) 1 | . . . . 10 . . . . Parts Cannibalized 5 | . . . . 5 . . . . Class Distribution -------------------- 45% | Mutant 19% | Gladiator 16% | Commander-Gladiator 9% | Scavenger-Gladiator 7% | Derelict-Mutant Dominant Class ---------------- Mutant | -10/Materials Mutant | -10/Subcaves Mutant | -7/Scraptown Derelict-Mutant | -5/Factory Gladiator | -5/Extension Commander-Gladiator | -5/Cetus Commander-Gladiator | -5/Archives Scavenger-Gladiator | -5/Hub_04(d) Resources | -11 -10 -10 -7 -5 -5 -5 -5 -5 ----------- Run | Yrd Mat Sub Scr Fac Ext Cet Arc Hub Matter Collected 1303 | 216 132 7 158 187 355 40 . 208 Remotely . | . . . . . . . . . Salvage Created 1862 | 82 123 92 . 321 934 . . 310 Parts 68 | 9 8 6 . 11 16 . . 18 Haulers Intercepted 1 | . 1 . . . . . . . Recyclers Shooed . | . . . . . . . . . Parts Field Recycled . | . . . . . . . . . Retrieved Matter . | . . . . . . . . . Parts Self-Destructed 2 | . . 2 . . . . . . Prevented . | . . . . . . . . . Parts Restored . | . . . . . . . . . Kills | -11 -10 -10 -7 -5 -5 -5 -5 -5 ------- Run | Yrd Mat Sub Scr Fac Ext Cet Arc Hub Combat Hostiles Destroyed 27 | . 2 5 . 4 12 . . 4 Melee 12 | . . . . 3 5 . . 4 Guns 2 | . 2 . . . . . . . AOE 5 | . . 5 . . . . . . Classes Destroyed 15 | 2 2 2 . 4 3 . . 2 Worker 1 | . . . . . . . . 1 Builder 1 | . . . . . 1 . . . Tunneler 2 | 2 . . . . . . . . Hauler 1 | . 1 . . . . . . . Recycler 3 | 1 . . . . 2 . . . Mechanic 1 | . . . . 1 . . . . Watcher 2 | . . . . 1 . . . 1 Swarmer 3 | . . 3 . . . . . . Grunt 10 | . 2 . . . 7 . . 1 Sentry 3 | . . . . 2 1 . . . Specialist 2 | . . . . . . . . 2 Programmer 3 | . . . . 2 . . . 1 Behemoth 2 | . . . . . 2 . . . Subdweller 2 | . . 2 . . . . . . Thug 1 | . . . . . 1 . . . Butcher 1 | . . . . . 1 . . . Best Kill Streak 4 | 3 2 3 . 2 3 . . 4 Combat Bots Only 3 | . 2 3 . 2 3 . . 2 Max Kills in Single Turn 2 | 1 1 2 . 1 1 . . 1 Gunslinging . | . . . . . . . . . Exploded 2 | . . 2 . . . . . . Melee 1 | . . . . 1 1 . . 1 Uniques/NPCs Destroyed . | . . . . . . . . . Combat | -11 -10 -10 -7 -5 -5 -5 -5 -5 -------- Run | Yrd Mat Sub Scr Fac Ext Cet Arc Hub Hostile Shots Fired 575 | . 11 24 . 51 97 57 . 335 Missed 195 | . 6 13 . 24 42 24 . 86 Hits 380 | . 5 11 . 27 55 33 . 249 Melee 3 | . . . . . . . . 3 Projectile 377 | . 5 11 . 27 55 33 . 246 AOE 2 | . . 2 . . . . . . Critical Strikes 24 | . . . . 3 8 3 . 10 Part Disruptions 2 | . . . . . . . . 2 Damage Taken 7507 | . 46 283 . 784 1421 849 . 4124 Core 1070 | . 16 45 . 82 65 139 . 723 Absorbed by Shields 142 | . . . . . 45 97 . . Ignored by Resistances 12 | . . . . . 12 . . . Regen/Repaired (Parts) 35 | . . . . 35 . . . . Core Remaining (%) 87 | 100 . . 75 . . . . . Volleys Fired 39 | 9 15 10 . . . . . 5 Largest 2 | 2 2 2 . . . . . 1 Hottest 100 | 40 40 100 . . . . . 33 Shots Fired 68 | 18 30 15 . . . . . 5 Gun 54 | 18 30 6 . . . . . . Cannon . | . . . . . . . . . Launcher 10 | . . 5 . . . . . 5 Special 4 | . . 4 . . . . . . Kinetic 54 | 18 30 6 . . . . . . Thermal 4 | . . 4 . . . . . . Explosive 10 | . . 5 . . . . . 5 Electromagnetic . | . . . . . . . . . Robot Hit Streak 10 | 10 5 7 . . . . . 1 Robot Miss Streak 4 | 3 4 3 . . . . . 2 Penetration Max . | . . . . . . . . . Secondary Targets 1 | . 1 . . . . . . . Max Gunslinging Chain 1 | . 1 . . . . . . . Shots Hit Robots 148 | 13 17 8 . 20 42 8 . 40 Core Hits 48 | 6 6 8 . 3 6 1 . 18 Critical Kills 4 | . . . . 3 1 . . . Critical Parts Destroyed 12 | . . . . 2 7 . . 3 Critical Strikes 23 | . . . . 5 8 1 . 9 Smash 17 | . . . . 5 8 1 . 3 Sever 1 | . . . . . . . . 1 Impale 5 | . . . . . . . . 5 Melee Attacks 173 | . . . . 44 70 11 . 48 Impact 146 | . . . . 44 70 9 . 23 Slashing 9 | . . . . . . 2 . 7 Piercing 18 | . . . . . . . . 18 Sneak Attacks 10 | . . . . 2 5 . . 3 Combat Hostiles . | . . . . . . . . . Follow-up Attacks 13 | . . . . 2 6 1 . 4 Damage Inflicted 6221 | 131 189 332 . 1057 2177 336 . 1999 Guns 362 | 124 189 49 . . . . . . Cannons . | . . . . . . . . . Explosions 528 | . . 283 . . . . . 245 Melee 5313 | . . . . 1057 2177 336 . 1743 Ramming 18 | 7 . . . . . . . 11 Kinetic 362 | 124 189 49 . . . . . . Thermal . | . . . . . . . . . Explosive 528 | . . 283 . . . . . 245 Electromagnetic . | . . . . . . . . . Impact 4390 | . . . . 1057 2177 247 . 909 Slashing 347 | . . . . . . 89 . 258 Piercing 576 | . . . . . . . . 576 Highest Corruption 42 | . . . . 13 13 13 13 42 Average Corruption 13 | . . . . 4 13 13 13 27 Corruption Purged . | . . . . . . . . . Corruption Blocked . | . . . . . . . . . Effects 114 | . . . . 10 58 13 2 31 Message Errors 33 | . . . . 3 14 7 . 9 Matter Fused 25 | . . . . 2 15 1 1 6 Heat Flow Errors 14 | . . . . . 11 1 . 2 Energy Discharges 7 | . . . . 1 4 . . 2 Parts Rejected 2 | . . . . . 2 . . . Parts Fused 1 | . . . . . . 1 . . Data Loss (minor) 16 | . . . . 3 10 1 1 1 Data Loss (major) 4 | . . . . . . 2 . 2 Alerts 4 | . . . . 1 1 . . 2 Misdirections 8 | . . . . . 1 . . 7 Overload Shots . | . . . . . . . . . Overflow Damage 1279 | . . . . 339 551 . . 389 Projectiles . | . . . . . . . . . Explosions . | . . . . . . . . . Melee 1279 | . . . . 339 551 . . 389 Knockbacks 17 | . . . . 5 9 . . 3 Impact 16 | . . . . 5 8 . . 3 Kinetic . | . . . . . . . . . Secondary 1 | . . . . . 1 . . . Self-Inflicted Damage 87 | . . 30 . . . . . 57 Shots 4 | . . 2 . . . . . 2 Rammed 2 | . . . . . . . . 2 Targets Rammed 4 | 2 . . . . . . . 2 Kicked 2 | 2 . . . . . . . . Crushed . | . . . . . . . . . Highest Temperature 329 | . 6 . . . 329 91 . 302 Average Temperature 124 | . 6 . . . 115 53 . 148 Received Heat Transfer 2227 | . 18 42 . 45 574 110 . 1438 Effects 1 | . . . . . 1 . . . Energy Bleed 1 | . . . . . 1 . . . Siege Activations . | . . . . . . . . . Martial Activations . | . . . . . . . . . Shielding Activations . | . . . . . . . . . Robots Disrupted . | . . . . . . . . . Combat Hostiles . | . . . . . . . . . Robots Corrupted 11 | . . . . 2 9 . . . Combat Hostiles 7 | . . . . 1 6 . . . Parts Fried 18 | . . . . 4 14 . . . Impact Corruptions 33 | . . . . 11 18 . . 4 Robots Melted . | . . . . . . . . . Combat Hostiles . | . . . . . . . . . Parts Melted . | . . . . . . . . . Heat Transferred . | . . . . . . . . . Parts Sabotaged . | . . . . . . . . . Parts Stolen . | . . . . . . . . . Parts Stripped . | . . . . . . . . . Power Chain Reactions . | . . . . . . . . . Alert | -11 -10 -10 -7 -5 -5 -5 -5 -5 ------- Run | Yrd Mat Sub Scr Fac Ext Cet Arc Hub Maximum Alert Level 2 | . . . . . 1 1 . 2 Low Security (%) 78 | 100 100 . . 100 83 50 100 18 Level 1 12 | . . . . . 16 49 . 10 Level 2 9 | . . . . . . . . 70 Level 3 . | . . . . . . . . . Level 4 . | . . . . . . . . . Level 5 . | . . . . . . . . . High Security . | . . . . . . . . . Max Security . | . . . . . . . . . Peak Influence 672 | 10 40 . . 42 311 266 86 672 Initial 156 | . . . . . 1 156 86 19 Average 113 | 1 8 . . 4 84 194 71 439 Influence Increases 2650 | 15 47 70 . 154 698 340 . 1326 Destroy 0b10 Robot/C 1280 | . 40 60 . 80 400 160 . 540 Destroy 0b10 Robot/NC 75 | 15 5 . . 10 25 10 . 10 Destroy Leader 186 | . 2 10 . 32 30 . . 112 Allied During Kill 861 | . . . . . 187 170 . 504 Successful Hack 54 | . . . . 8 46 . . . Disable Machine 15 | . . . . . . . . 15 Destroy Structure 134 | . . . . 24 10 . . 100 Lose Combat Pursuer 45 | . . . . . . . . 45 Influence Decreases 2074 | 15 40 77 . 150 423 403 160 806 Entered New Map 297 | . . 4 . . 3 123 130 37 Time Decay 973 | 15 40 73 . 126 310 160 30 219 Lost Part 390 | . . . . 10 70 80 . 230 Lost Ally 414 | . . . . 14 40 40 . 320 Squads Dispatched 13 | . 1 . . 2 . . . 10 Investigation 1 | . . . . . . . . 1 Extermination 3 | . . . . 2 . . . 1 Reinforcement 8 | . 1 . . . . . . 7 Assault 1 | . . . . . . . . 1 Garrison . | . . . . . . . . . Intercept . | . . . . . . . . . Searches Triggered . | . . . . . . . . . Construction Impeded 1 | . . . . . . . . 1 Haulers Reinforced 1 | . . . . . . . . 1 Active Scanning Responses . | . . . . . . . . . Cargo Convoy Interrupts . | . . . . . . . . . Stealth | -11 -10 -10 -7 -5 -5 -5 -5 -5 --------- Run | Yrd Mat Sub Scr Fac Ext Cet Arc Hub Distress Signals 9 | . 1 . . 1 . 2 . 5 Communications Jammed . | . . . . . . . . . Distress Signals . | . . . . . . . . . Times Spotted 95 | . 6 9 . 14 22 10 . 34 Peak Tracking Total 7 | . 4 3 . 3 4 5 . 7 Tactical Retreats 7 | . . . . 4 . . . 3 ECM-based Alert Blocks 12 | . . . . 5 . . . 7 Traps | -11 -10 -10 -7 -5 -5 -5 -5 -5 ------- Run | Yrd Mat Sub Scr Fac Ext Cet Arc Hub Traps Triggered 1 | . . . . . 1 . . . Indirectly . | . . . . . . . . . Trap Hack Attempts . | . . . . . . . . . Triggered . | . . . . . . . . . Disarmed . | . . . . . . . . . Reprogrammed . | . . . . . . . . . Reused . | . . . . . . . . . Traps Extracted . | . . . . . . . . . Installed . | . . . . . . . . . Triggered . | . . . . . . . . . Machines | -11 -10 -10 -7 -5 -5 -5 -5 -5 ---------- Run | Yrd Mat Sub Scr Fac Ext Cet Arc Hub Machines Disabled 1 | . . . . . . . . 1 Max in Single Turn . | . . . . . . . . . Machines Repaired . | . . . . . . . . . Machines Dismantled . | . . . . . . . . . Machines Sabotaged . | . . . . . . . . . Overloaded Fab Kills . | . . . . . . . . . Hacking | -11 -10 -10 -7 -5 -5 -5 -5 -5 --------- Run | Yrd Mat Sub Scr Fac Ext Cet Arc Hub Machines Accessed 22 | . . . 3 3 13 1 1 1 Terminals 18 | . . . . 3 13 1 . 1 Fabricators . | . . . . . . . . . Repair Stations . | . . . . . . . . . Recycling Units . | . . . . . . . . . Scanalyzers . | . . . . . . . . . Garrison Access . | . . . . . . . . . Total Hacks 60 | . . . 5 8 20 1 25 1 Successful 43 | . . . 5 5 7 1 25 . Failed 17 | . . . . 3 13 . . 1 Catastrophic 6 | . . . . 1 4 . . 1 Database Lockouts . | . . . . . . . . . Manual 19 | . . . . 5 10 4 . . Terminals 30 | . . . . 8 20 1 . 1 Fabricators . | . . . . . . . . . Repair Stations . | . . . . . . . . . Recycling Units . | . . . . . . . . . Scanalyzers . | . . . . . . . . . Garrison Access . | . . . . . . . . . Terminal Hacks 39 | . . . 5 4 4 1 25 . Record 26 | . . . 1 . . . 25 . Robot Analysis 3 | . . . 3 . . . . . Open Door 6 | . . . . 1 4 1 . . Branch Access Points 1 | . . . . 1 . . . . Alert Level 1 | . . . . 1 . . . . Zone Layout 1 | . . . . 1 . . . . Proto ID Catalog 1 | . . . 1 . . . . . Fabricator Hacks . | . . . . . . . . . Repair Station Hacks . | . . . . . . . . . Recycling Unit Hacks . | . . . . . . . . . Scanalyzer . | . . . . . . . . . Garrison Access Hacks . | . . . . . . . . . Unauthorized Hacks 4 | . . . . 1 3 . . . Terminals 4 | . . . . 1 3 . . . Assimilate 1 | . . . . . 1 . . . Botnet 3 | . . . . 1 2 . . . Fabricators . | . . . . . . . . . Repair Stations . | . . . . . . . . . Recycling Units . | . . . . . . . . . Scanalyzers . | . . . . . . . . . Garrison Access . | . . . . . . . . . Data Cores Recovered . | . . . . . . . . . Used . | . . . . . . . . . Hacking Detections 15 | . . . . 3 10 1 . 1 Full Trace Events . | . . . . . . . . . Feedback Events . | . . . . . . . . . Feedback Blocked . | . . . . . . . . . Robot Schematics Acquired . | . . . . . . . . . Robots Built . | . . . . . . . . . Authchips . | . . . . . . . . . Time . | . . . . . . . . . Total Robot Build Rating . | . . . . . . . . . Part Schematics Acquired . | . . . . . . . . . Parts Built . | . . . . . . . . . Authchips . | . . . . . . . . . Time . | . . . . . . . . . Total Part Build Rating . | . . . . . . . . . Part Studies Acquired . | . . . . . . . . . Parts Repaired . | . . . . . . . . . Time . | . . . . . . . . . Parts Recycled . | . . . . . . . . . Recycled Matter . | . . . . . . . . . Retrieved Matter . | . . . . . . . . . Retrieved Components . | . . . . . . . . . Parts Scanalyzed . | . . . . . . . . . Part Schematics Acquired . | . . . . . . . . . Parts Damaged . | . . . . . . . . . Bothacking | -11 -10 -10 -7 -5 -5 -5 -5 -5 ------------ Run | Yrd Mat Sub Scr Fac Ext Cet Arc Hub Used RIF Installer . | . . . . . . . . . Robots Hacked . | . . . . . . . . . Non-combat . | . . . . . . . . . Combat . | . . . . . . . . . Robot Hacks Applied . | . . . . . . . . . Relay Couplers Released . | . . . . . . . . . Fabnet Peak Effective % . | . . . . . . . . . Robots Rewired 11 | . . . . . 11 . . . Allies Hacked . | . . . . . . . . . Hacks Repelled . | . . . . . . . . . Allies | -11 -10 -10 -7 -5 -5 -5 -5 -5 -------- Run | Yrd Mat Sub Scr Fac Ext Cet Arc Hub Total Allies 23 | . . . . . 18 5 . . Largest Group 19 | . . . . . 16 19 19 18 Highest-Rated Group 1016 | . . . . . 601 1016 1016 857 Highest-Rated Ally 159 | . . . . . 159 159 159 96 Initial UFD Resources 37 | . . . . 37 37 37 37 37 Total Orders 5 | . . . . 4 . 1 . . GUARD 1 | . . . . . . 1 . . EXPLORE 4 | . . . . 4 . . . . Ally Attacks 333 | . . . . . 100 81 . 152 Total Damage 7987 | . . . . . 1910 1939 . 4138 Kills 45 | . . . . . 10 10 . 25 Allies Corrupted . | . . . . . . . . . Allies Melted 2 | . . . . . . . . 2 Intel | -11 -10 -10 -7 -5 -5 -5 -5 -5 ------- Run | Yrd Mat Sub Scr Fac Ext Cet Arc Hub Active Infowar (turns) 4369 | 19 231 426 1488 950 1002 . . 253 Sensors 1646 | . . . . 901 745 . . . Seismic 2783 | 19 231 426 1488 369 250 . . . ECM 1169 | . . . . 686 230 . . 253 Robot Analysis Total 3 | . . . 3 . . . . . Derelict Logs Recovered 2 | . . . 2 . . . . . Drone Launches 4 | . . . . 4 . . . . Drone Recoveries 1 | . . . . 1 . . . . Exploration | -11 -10 -10 -7 -5 -5 -5 -5 -5 ------------- Run | Yrd Mat Sub Scr Fac Ext Cet Arc Hub Turns Passed 5581 | 115 231 426 1488 950 1484 326 75 486 Spaces Moved 3345 | 55 149 300 1138 420 745 192 47 299 Core 86 | 16 . . . . . . . 70 Treads 10 | . . . . . . . . 10 Legs 2916 | 39 149 297 1138 262 596 192 47 196 Wheels 11 | . . 3 . . . . . 8 Hover 322 | . . . . 158 149 . . 15 Flight . | . . . . . . . . . Fastest Speed 50 | 50 120 110 125 121 120 120 120 50 Average Speed 128 | 133 120 121 128 166 122 120 120 104 Slowest Speed 380 | 250 120 190 190 380 190 120 120 190 Overloaded Moves . | . . . . . . . . . Propulsion Burnouts . | . . . . . . . . . Robots Hopped . | . . . . . . . . . Potential Cave-ins 2 | . . . . 2 . . . . Cave-ins Triggered 1 | . . . . 1 . . . . Exploration Rate (%) 48 | 4 37 27 79 18 84 81 70 34 Regions Visited 8 Branch Regions 6 Pre-discovered Areas 1 | . . . 1 . . . . . Known Exits Taken 1 | . . . . 1 . . . . Unknown Exits Taken 7 | 1 1 1 1 . 1 1 1 . Scrap Searched 8 | . . . 8 . . . . . Spaces Dug 12 | . . . . 12 . . . . Terrain Destroyed 69 | . . 22 . 12 . . . 35 Melee 12 | . . . . 12 . . . . Projectile . | . . . . . . . . . AOE 57 | . . 22 . . . . . 35 Terrain Rammed . | . . . . . . . . . Walls Destroyed . | . . . . . . . . . Machines Disabled . | . . . . . . . . . Actions | -11 -10 -10 -7 -5 -5 -5 -5 -5 --------- Run | Yrd Mat Sub Scr Fac Ext Cet Arc Hub Total 4279 | 76 175 339 1165 595 1208 269 65 387 Wait 377 | . 4 20 . 105 158 59 19 12 Move 3337 | 54 148 299 1137 419 744 191 46 299 Hop . | . . . . . . . . . Pick Up 44 | 4 5 3 10 5 11 1 . 5 Fast Attach 42 | 7 . . 1 6 14 3 . 11 Attach 24 | . . 2 1 10 3 3 . 5 Detach 9 | . . . . 2 3 . . 4 Swap 21 | . 1 2 4 5 9 . . . Drop 37 | . 2 3 12 2 15 2 . 1 Fire 39 | 9 15 10 . . . . . 5 Melee 155 | . . . . 41 61 10 . 43 Ram 2 | . . . . . . . . 2 Kick 2 | 2 . . . . . . . . Crush . | . . . . . . . . . Escape Stasis 13 | . . . . . 13 . . . Rewire 177 | . . . . . 177 . . . Trap . | . . . . . . . . . Miscellaneous . | . . . . . . . . . Route ------- -11/Scrapyard -10/Materials (discovered 2 exits: [*Min] / [*Sub]) -10/Subcaves (discovered 2 exits: [*Mat] / *Scr) -7/Scraptown (discovered 2 exits: *Fac x2) -5/Factory (discovered 4 exits: Upp x2 / *Ext x2) -5/Extension (discovered 2 exits: [*Fac] / *Cet) -5/Cetus (discovered 2 exits: [*Fac] / *Arc) -5/Archives -5/Hub_04(d) History --------- Turn | Location | Event 14 | -11/Scrapyard | Discovered new exit (range 15) 116 | -11/Scrapyard | Entered Materials 117 | -10/Materials | Met a group of wandering Federalists 227 | -10/Materials | Discovered new exit (range 9) 323 | -10/Materials | Build established: Mutant 336 | -10/Materials | Discovered new exit (range 8) 347 | -10/Materials | Entered Subcaves 348 | -10/Subcaves | Continued accompanying wandering Federalists (1) 348 | -10/Subcaves | Approached by a straggling Scientist 416 | -10/Subcaves | A swath of the cavern ceiling suddenly collapsed 428 | -10/Subcaves | Shifting Twisted Machinery released Flamer 430 | -10/Subcaves | Discovered new exit (range 12) 754 | -10/Subcaves | Ambushed by Subdweller buried in earth 754 | -10/Subcaves | Ambushed by Subdweller buried in earth 773 | -10/Subcaves | Entered Scraptown 798 | -7/Scraptown | Lost 3 parts (2n1w) 976 | -7/Scraptown | Learned location of Extension (-5) 1070 | -7/Scraptown | Scanned Subdweller tech in exchange for log data 1074 | -7/Scraptown | Learned Research trap positions 1075 | -7/Scraptown | Learned Research security intel 1338 | -7/Scraptown | Visited Shadow of the Wyrm 1356 | -7/Scraptown | Visited SPCMW 1375 | -7/Scraptown | Visited Bundlers 1572 | -7/Scraptown | Discovered new exit (range 11) 1687 | -7/Scraptown | Visited UFD Registry 1687 | -7/Scraptown | Registered with UFD as "Steelcore" 1714 | -7/Scraptown | Visited LU-1G1's Boring Crew 1731 | -7/Scraptown | Visited Analyses Database 1742 | -7/Scraptown | Received an X-ray algorithm 1774 | -7/Scraptown | Visited Research Penetration Think Tank 1800 | -7/Scraptown | Visited Scrapoid Pod Storage 1820 | -7/Scraptown | Visited Scrapoid Research Area 1834 | -7/Scraptown | Visited Science Guys 1875 | -7/Scraptown | Visited DA-N13 Charitable Foundation 1886 | -7/Scraptown | Found DCF Scrap (29 items) 1928 | -7/Scraptown | Visited A0-MCA Data Center 1951 | -7/Scraptown | Visited Chapter 10 2055 | -7/Scraptown | Found Scrap Suit 2075 | -7/Scraptown | Discovered new exit (range 3) 2161 | -7/Scraptown | Met Optimus 2161 | -7/Scraptown | Accepted into 0bPrime 2261 | -7/Scraptown | Entered Factory 2261 | -5/Factory | Evolved 10 slots: Power x1, Propulsion x2, Utility x7 2560 | -5/Factory | Build established: Derelict-Mutant 2947 | -5/Factory | Ran an X-ray algorithm 3100 | -5/Factory | Identified exit to Upper Caves 3100 | -5/Factory | Identified exit to Extension 3181 | -5/Factory | Crushed by falling debris 3181 | -5/Factory | System corruption reached 10% 3188 | -5/Factory | Build established: Gladiator 3211 | -5/Factory | Entered Extension 3309 | -5/Extension | Rescued a captive Derelict 3515 | -5/Extension | Rescued a captive Derelict 3516 | -5/Extension | Rescued a captive Derelict 3947 | -5/Extension | Spotted B-75 Beast 3952 | -5/Extension | Spotted B-75 Beast 3970 | -5/Extension | Destroyed B-75 Beast 3998 | -5/Extension | Destroyed B-75 Beast 4026 | -5/Extension | Lost 6 parts (1p1n4u) 4226 | -5/Extension | Rescued a captive Derelict 4226 | -5/Extension | Rescued a captive Derelict 4257 | -5/Extension | Build established: Scavenger-Gladiator 4420 | -5/Extension | Rescued A7 4612 | -5/Extension | Discovered new exit (range 10) 4614 | -5/Extension | Discovered new exit (range 6) 4653 | -5/Extension | Build established: Commander-Gladiator 4695 | -5/Extension | Entered Cetus 4695 | -5/Cetus | Accompanied by 16 allies (A7) 4700 | -5/Cetus | Acquired a Cetus Manufacturing Module code from A7 4720 | -5/Cetus | Spotted Cetus Guard 4720 | -5/Cetus | Spotted Cetus Guard 4722 | -5/Cetus | Spotted Cetus Guard 4722 | -5/Cetus | Spotted Cetus Guard 4746 | -5/Cetus | Allies destroyed Cetus Guard 4746 | -5/Cetus | Allies destroyed Cetus Guard 4749 | -5/Cetus | Allies destroyed Cetus Guard 4752 | -5/Cetus | Allies destroyed Cetus Guard 4778 | -5/Cetus | Lost 3 parts (1n2u) 4828 | -5/Cetus | Started Cetus Manufacturing Module 4838 | -5/Cetus | Escorted A7 to Cetus Mainframe 4853 | -5/Cetus | Manufactured an Enhanced Grunt 4876 | -5/Cetus | Discovered new exit (range 15) 4878 | -5/Cetus | Manufactured an Enhanced Grunt 4899 | -5/Cetus | Spotted Cetus Guard 4900 | -5/Cetus | Spotted Cetus Guard 4903 | -5/Cetus | Manufactured an Enhanced Grunt 4903 | -5/Cetus | Spotted Cetus Guard 4903 | -5/Cetus | Spotted Cetus Guard 4906 | -5/Cetus | Allies destroyed Cetus Guard 4910 | -5/Cetus | Discovered new exit (range 16) 4920 | -5/Cetus | Allies destroyed Cetus Guard 4922 | -5/Cetus | Allies destroyed Cetus Guard 4927 | -5/Cetus | Allies destroyed Cetus Guard 4928 | -5/Cetus | Manufactured an Enhanced Grunt 4929 | -5/Cetus | Met Revision 17 4948 | -5/Cetus | Lost 5 parts (1p1n2u1w) 4953 | -5/Cetus | Manufactured an Enhanced Grunt 5021 | -5/Cetus | Entered Archives 5021 | -5/Archives | Accompanied by 19 allies (A7) 5026 | -5/Archives | Received a hacking code to weaken MAIN.C 5038 | -5/Archives | Met Zhirov 5044 | -5/Archives | Reinforcements dispatched to Archives 5051 | -5/Archives | Read partially decrypted archive contents 5056 | -5/Archives | Discovered new exit (range 13) 5089 | -5/Archives | Reinforcements dispatched to Archives 5096 | -5/Archives | Entered Hub_04(d) 5096 | -5/Hub_04(d) | Accompanied by 18 allies 5207 | -5/Hub_04(d) | Lost 3 parts (1n2w) 5250 | -5/Hub_04(d) | Lost 4 allies 5307 | -5/Hub_04(d) | Lost 3 allies 5344 | -5/Hub_04(d) | Spotted B-75 Beast 5361 | -5/Hub_04(d) | Allies destroyed B-75 Beast 5396 | -5/Hub_04(d) | First assault squad dispatched 5446 | -5/Hub_04(d) | System corruption reached 30% 5454 | -5/Hub_04(d) | Lost 3 allies 5456 | -5/Hub_04(d) | Core integrity fell below 50% 5509 | -5/Hub_04(d) | Core integrity fell below 20% 5511 | -5/Hub_04(d) | Lost 15 parts (2p4n6u3w) 5545 | -5/Hub_04(d) | Released all parts (4) 5572 | -5/Hub_04(d) | Lost 3 parts (2n1w) 5582 | -5/Hub_04(d) | Destroyed by G-50 Soldier with Heavy Laser Last Messages --------------- 05535_ X-72 Disruptor suffers critical hit (Impale). 05541_ Acquired 10 matter. 05541_ Centrium Heavy Treads destroyed. 05542_ System corrupted: Matter fused (-8). 05542_ Acquired 8 matter. 05542_ P-70 Sage resets R-10 Processor, system corruption cleaned. 05545_ Released Antigrav System. 05545_ Released Armor Integrity Analyzer. 05545_ Released Adv. Melee Analysis Suite. 05545_ Released Lgt. Angular Momentum Engine. 05546_ P-70 Sage resets R-10 Processor, system corruption cleaned. 05559_ TG3KT| %CVHBTTSXZ#X9TAYN||FZAKNATCM<:FO 05575_ System corrupted: Energy discharge (-22). 05576_ Slug penetrates Control Node. 05576_ Control Node disabled. 05578_ Slammed into U-05 Engineer. [Achievement: I Think I Know What's Going On] Map ----- +----------------------------------------------------+ | ! """" + #??????????????????????????????? | | """" # #??????????????????????????????? | | # #??????????????????????????????? | | ####+#########+#######+#+##??????????????????????? | | "????????????????????? | | ???????????????????? | | ###########??????????????????????? | | ####+######## ###########??????????????????????? | | ??# ?# # ! ##?????????????????????? | | ??# ?# # """ #?????????????????????? | | ???"" # # "T" """ #??????????????????????? | | ???"" " " " # # " " #??????????????????????? | | ???"T " " " + + #??????????????????????? | | ???"" " " " # # !] #??????????????????????? | | ???"" # # "" !] =#??????????????????????? | | ??# ?# # #??????????????????????? | | ??#########?# ####+######??????????????????????? | | ????????????# #??# #???????????????????????????? | | ????????????# #??# #???????????????????????????? | | ????????????# #??#p#???????????????????????????? | | ????????????# u####%####????????????????????????? | | ????????????# #???????? ???????????????? | | ????????????# #??????"""???????????????? | | ????????????# ###?? """"???????????????? | | ????????????# # """"???????????????? | | ????????????+ @/ """"???????????????? | | ????????????# #gg #?????????????? | | ????????????#########+#####?? #?????????????? | | ??????????????????????????????? #?????????????? | | ?????????????????????????????????! #?????????????? | | ???????????????????????????????????#?????????????? | | ?????????????????????????????????????????????????? | | ?????????????????????????????????????????????????? | | ?????????????????????????????????????????????????? | | ?????????????????????????????????????????????????? | | ?????????????????????????????????????????????????? | | ?????????????????????????????????????????????????? | | ?????????????????????????????????????????????????? | | ?????????????????????????????????????????????????? | | ?????????????????????????????????????????????????? | | ?????????????????????????????????????????????????? | | ?????????????????????????????????????????????????? | | | | | | | | | | | | | | | | | +----------------------------------------------------+ Best States ------------- Heat Dissipation 59 Energy Generation 33 Energy Capacity 650 Matter Stores 300 Matter Capacity 300 Sight Range 16 Robot Scan Range 14 Terrain Scan Density 10 ECM Strength 2 Armor Coverage 900 Resistance: TH 15 Evasion (%) 65 Melee Accuracy 16 Armor Integrity Analysis 30 Recoil Reduction 2 Force Boost 20 Offensive Hacking 10 Item Schematics ----------------- None Robot Schematics ------------------ None Fabricated ------------ Nothing Repaired ---------- Nothing Studied --------- None Alien Tech Used ----------------- None Achievements -------------- I Think I Know What's Going On Main Advantage Challenges ------------ None Game ------ Seed FireWaveBattery Manual? 0 Play Time 01:50:21 Cumulative 54.2 hours Start 2026.08.20 @ 10:02:32 End 2026.08.20 @ 14:37:10 Sessions 1 Manual Loads 0 Difficulty Rogue Special Mode None Game No. 74 Rogue 74 Adventurer 0 Explorer 0 Win Type - Total 0 Types 0/0/0/0/0/0/0/0/0/0 Lore% 51 Gallery% 37 Achievement% 28 Wizard Run 0 Options --------- Layout 1 ASCII 0 Keyboard 0 Movement Numpad Keybinds 0 Fullscreen 2 Font 24/Smallcaps Map View 50x35 Zoom Use 0% Tactical HUD 1 Map Filters NONE Filters NONE Steam 1 RUN: 00105913-2569-4171-a14f-2b6eafc602a8